bitfinex-derivatives/quotes_SOLF0:USTF0_20241127
["timestamp","ask_amount","ask_price","bid_price","bid_amount"]
[1732676757103,2.32,233.38,233.24,12.88085827]
[1732676757298,2.32,233.38,233.32,2.1439]
[1732676757498,2.1435,233.36,233.24,12.88085827]
[1732676757803,2.32,233.38,233.29,2.1441]
[1732676758305,10.56085827,233.36,233.29,2.1441]
[1732676758602,2.1435,233.37,233.31,2.144]
[1732676758799,10.56085827,233.43,233.27,10.56085827]
[1732676759001,10.56085827,233.43,233.3,10.56085827]
[1732676759002,2.32,233.42,233.3,10.56085827]
[1732676759304,10.56085827,233.43,233.31,4.3695]
[1732676759597,2.1431,233.41,233.31,4.3695]
[1732676759798,12.88085827,233.43,233.31,4.3695]
[1732676759999,10.56085827,233.4,233.31,4.3695]
[1732676760700,10.56085827,233.37,233.27,2.1443]
[1732676760898,2.32,233.36,233.27,2.1443]
[1732676761504,2.1439,233.32,233.25,2.1445]
[1732676762403,2.1439,233.32,233.26,2.1444]
[1732676763104,2.32,233.36,233.2,2.32]
[1732676763308,12.88085827,233.36,233.2,12.88085827]
[1732676763603,2.1438,233.33,233.2,12.88085827]
[1732676763799,12.88085827,233.36,233.2,12.88085827]
[1732676763998,10.56085827,233.33,233.2,10.56085827]
[1732676764199,10.56085827,233.34,233.2,10.56085827]
[1732676765103,2.1439,233.32,233.25,2.1445]
[1732676765300,10.56085827,233.34,233.2,10.56085827]
[1732676766200,10.56085827,233.34,233.18,2.32]
[1732676766407,10.56085827,233.31,233.18,2.32]
[1732676766609,2.32,233.3,233.18,2.32]
[1732676766904,2.1442,233.29,233.23,2.1447]
[1732676767308,12.87,233.44,233.26,10.56085827]
[1732676767606,4.4631,233.41,233.35,2.1436]
[1732676767906,4.4631,233.41,233.3,2.1484]
[1732676767907,2.32,233.41,233.3,2.1484]
[1732676768104,2.1432,233.4,233.33,2.1437]
[1732676768509,2.1432,233.4,233.34,2.1437]
[1732676770109,2.1433,233.39,233.32,2.1438]
[1732676770310,10.56085827,233.4,233.3,2.1484]
[1732676770909,2.1433,233.38,233.32,2.1438]
[1732676772309,2.1435,233.37,233.32,2.1438]
[1732676772707,10.56085827,233.4,233.3,2.144]
[1732676773008,10.56085827,233.4,233.27,2.0519]
[1732676773410,2.1433,233.39,233.32,2.1439]
[1732676773608,2.32,233.41,233.27,2.0519]
[1732676774410,2.32,233.41,233.28,2.1736]
[1732676774702,2.1433,233.39,233.32,2.1438]
[1732676775309,2.1431,233.41,233.29,10.56085827]
[1732676775608,2.3,233.44,233.32,10.56085827]
[1732676775805,2.1428,233.44,233.33,2.1535]
[1732676776010,2.3,233.44,233.33,2.1535]
[1732676776205,10.56085827,233.43,233.33,2.1535]
[1732676776911,2.1431,233.41,233.36,2.1435]
[1732676777313,2.1434,233.38,233.32,2.1438]
[1732676777514,4.4434,233.38,233.32,2.1438]
[1732676777717,4.4434,233.38,233.28,2.1736]
[1732676777911,4.4434,233.38,233.32,2.1438]
[1732676778215,2.1435,233.36,233.28,2.1736]
[1732676778516,2.3,233.38,233.29,2.1441]
[1732676778713,2.3,233.38,233.28,2.1736]
[1732676779508,2.3,233.38,233.29,10.56085827]
[1732676780109,2.3,233.43,233.29,10.56085827]
[1732676780317,4.443,233.43,233.32,10.56085827]
[1732676780717,4.443,233.43,233.35,2.1436]
[1732676780918,4.443,233.43,233.32,10.56085827]
[1732676781412,4.443,233.43,233.36,2.1434]
[1732676781613,4.443,233.43,233.32,10.56085827]
[1732676781810,2.3,233.43,233.32,10.56085827]
[1732676782010,12.86085827,233.43,233.29,10.56085827]
[1732676783019,12.86085827,233.43,233.33,2.1438]
[1732676783417,12.86085827,233.43,233.29,10.56085827]
[1732676783620,12.66065827,233.46,233.32,10.56085827]
[1732676783818,2.3,233.45,233.32,10.56085827]
[1732676784016,4.2818,233.65,233.38,10.56085827]
[1732676784317,2.3,233.53,233.38,12.86085827]
[1732676784514,2.1422,233.51,233.45,2.1426]
[1732676784717,2.3,233.53,233.39,2.1947]
[1732676785114,2.3,233.53,233.42,2.1429]
[1732676785925,2.3,233.53,233.39,2.1947]
[1732676786221,2.3,233.53,233.41,10.56085827]
[1732676786821,4.442,233.53,233.41,10.56085827]
[1732676787219,2.1699,233.54,233.47,2.1425]
[1732676787424,13.8099,233.63,233.44,12.86085827]
[1732676787425,10.56085827,233.58,233.44,12.86085827]
[1732676787623,2.3,233.61,233.54,2.1418]
[1732676787821,2.3,233.61,233.5,10.56085827]
[1732676788412,2.3,233.61,233.47,10.56085827]
[1732676788617,12.86085827,233.61,233.44,12.86085827]
[1732676789217,2.1415,233.59,233.44,12.86085827]
[1732676789419,2.1415,233.59,233.47,10.56085827]
[1732676789618,2.1415,233.59,233.44,2.3]
[1732676789619,2.3,233.61,233.5,10.56085827]
[1732676789819,2.3,233.61,233.54,2.1418]
[1732676790919,2.3,233.61,233.57,2.1416]
[1732676791321,2.3,233.63,233.57,2.1416]
[1732676792425,2.3,233.63,233.5,12.86085827]
[1732676792426,2.3,233.63,233.53,2.1419]
[1732676792627,2.3,233.63,233.5,12.86085827]
[1732676793021,2.3,233.63,233.58,2.1415]
[1732676793426,2.3,233.63,233.5,12.86085827]
[1732676793623,2.3,233.63,233.57,2.1416]
[1732676794127,4.4411,233.63,233.57,2.1416]
[1732676794329,2.3,233.63,233.57,2.1416]
[1732676794721,2.3,233.63,233.58,2.1415]
[1732676794925,2.3,233.65,233.53,10.56085827]
[1732676795531,10.56085827,233.67,233.53,10.56085827]
[1732676795724,4.4409,233.65,233.57,2.1415]
[1732676796028,4.4409,233.65,233.5,12.86085827]
[1732676796029,10.56085827,233.64,233.5,12.86085827]
[1732676796425,10.56085827,233.64,233.54,2.1419]
[1732676796626,10.56085827,233.64,233.5,12.86085827]
[1732676797022,10.56085827,233.64,233.57,2.1416]
[1732676797227,2.3,233.65,233.53,10.56085827]
[1732676797422,2.3,233.67,233.53,10.56085827]
[1732676797625,2.3,233.67,233.61,2.1412]
[1732676798321,2.1408,233.66,233.59,2.1414]
[1732676798522,2.3,233.67,233.5,12.86085827]
[1732676798523,12.86085827,233.67,233.5,12.86085827]
[1732676799028,2.1409,233.65,233.58,2.1415]
[1732676800125,12.86085827,233.67,233.57,2.1416]
[1732676800333,12.86085827,233.67,233.53,10.56085827]
[1732676800532,2.3,233.67,233.53,10.56085827]
[1732676801843,2.1409,233.65,233.58,2.1415]
[1732676802043,2.1409,233.65,233.53,10.56085827]
[1732676802636,12.86085827,233.67,233.53,10.56085827]
[1732676803045,12.86085827,233.67,233.51,2.3]
[1732676803046,10.56085827,233.64,233.51,2.3]
[1732676803236,10.56085827,233.64,233.5,12.86085827]
[1732676804041,2.1412,233.62,233.56,2.1417]
[1732676807052,2.1417,233.57,233.51,2.1421]
[1732676807544,2.26,233.58,233.52,2.142]
[1732676808340,4.4016,233.58,233.52,2.142]
[1732676809649,2.26,233.58,233.47,10.56085827]
[1732676810154,2.26,233.58,233.53,2.1419]
[1732676810350,17.0931,233.71,233.53,2.1419]
[1732676810351,2.26,233.65,233.53,10.56085827]
[1732676810652,2.26,233.65,233.59,2.1414]
[1732676810851,2.26,233.65,233.53,10.56085827]
[1732676811547,2.1411,233.63,233.57,2.1415]
[1732676811744,2.1411,233.63,233.53,10.56085827]
[1732676811745,2.26,233.65,233.53,10.56085827]
[1732676812150,2.141,233.64,233.56,2.1416]
[1732676812352,2.141,233.64,233.53,10.56085827]
[1732676813049,2.26,233.65,233.59,2.1414]
[1732676813250,4.401,233.65,233.59,2.1414]
[1732676813445,2.26,233.65,233.53,10.56085827]
[1732676813649,2.26,233.65,233.58,2.1415]
[1732676813850,2.26,233.65,233.53,10.56085827]
[1732676814060,2.26,233.65,233.58,2.1415]
[1732676815154,12.82085827,233.65,233.55,2.1418]
[1732676817456,10.56085827,233.62,233.53,2.1419]
[1732676817652,2.1415,233.59,233.53,2.1419]
[1732676818357,2.26,233.58,233.51,2.1421]
[1732676819259,2.1417,233.56,233.51,2.1421]
[1732676819450,2.26,233.58,233.47,2.26]
[1732676819654,2.26,233.58,233.47,12.82085827]
[1732676819856,2.26,233.62,233.5,10.56085827]
[1732676820360,2.26,233.63,233.5,10.56085827]
[1732676820562,2.26,233.66,233.51,2.0786]
[1732676820862,2.26,233.65,233.52,10.56085827]
[1732676821161,2.1411,233.63,233.52,10.56085827]
[1732676821455,2.26,233.64,233.52,10.56085827]
[1732676822156,10.56085827,233.63,233.51,2.0786]
[1732676822365,2.1412,233.61,233.55,2.1417]
[1732676822655,10.56085827,233.63,233.51,2.0786]
[1732676822851,10.56085827,233.6,233.51,2.0786]
[1732676823051,2.1416,233.58,233.52,2.142]
[1732676823260,10.56085827,233.6,233.51,2.0786]
[1732676823459,10.56085827,233.57,233.51,2.0786]
[1732676823664,2.1421,233.52,233.51,2.0786]
[1732676824253,10.56085827,233.54,233.34,2.32490727]
[1732676824459,10.56085827,233.54,233.27,2.10159056]
[1732676824460,10.56085827,233.46,233.32,12.82085827]
[1732676824655,10.56085827,233.46,233.37,2.1434]
[1732676824656,12.82085827,233.46,233.37,2.1434]
[1732676824857,2.143,233.42,233.32,2.26]
[1732676825264,12.82085827,233.46,233.32,2.26]
[1732676825653,10.56085827,233.42,233.33,4.3173]
[1732676825857,2.26,233.44,233.33,4.3173]
[1732676826059,2.26,233.44,233.34,10.56085827]
[1732676826761,2.26,233.47,233.37,2.1434]
[1732676826965,2.26,233.47,233.36,10.56085827]
[1732676827162,2.26,233.5,233.39,10.56085827]
[1732676827360,10.56085827,233.54,233.39,12.82085827]
[1732676827571,2.26,233.54,233.42,10.56085827]
[1732676827764,2.26,233.55,233.42,10.56085827]
[1732676827965,12.82085827,233.57,233.48,2.1424]
[1732676828161,2.26,233.57,233.45,10.56085827]
[1732676828372,2.26,233.57,233.45,2.26]
[1732676828564,2.26,233.59,233.45,2.26]
[1732676830972,2.26,233.59,233.53,2.1419]
[1732676831166,2.26,233.59,233.45,2.26]
[1732676831770,2.1411,233.63,233.55,2.1418]
[1732676831970,2.26,233.63,233.55,2.1418]
[1732676832670,2.26,233.63,233.45,2.26]
[1732676832871,19.1755124,233.63,233.46,2.2032]
[1732676833168,9.98901931,233.62,233.46,3.8892]
[1732676833370,9.98901931,233.62,233.47,2.1123]
[1732676834477,2.1413,233.61,233.53,2.142]
[1732676834673,19.1755124,233.63,233.47,2.1123]
[1732676834871,9.98999145,233.62,233.47,2.1123]
[1732676835866,9.98999145,233.62,233.5,2.1422]
[1732676836566,2.1415,233.59,233.5,2.1422]
[1732676836771,19.1755124,233.63,233.5,2.1422]
[1732676837075,21.74522678,233.62,233.5,2.1422]
[1732676837270,19.1755124,233.63,233.5,2.1422]
[1732676837271,9.99006686,233.61,233.5,2.1422]
[1732676837477,9.99006686,233.6,233.5,2.1422]
[1732676837670,19.1755124,233.63,233.5,2.1422]
[1732676837869,19.1755124,233.63,233.47,2.1123]
[1732676838070,12.25013342,233.62,233.48,16.9155124]
[1732676838272,9.99013342,233.61,233.48,16.9155124]
[1732676838675,2.26,233.62,233.48,16.9155124]
[1732676838977,2.1413,233.61,233.48,16.9155124]
[1732676839176,2.26,233.62,233.47,2.1123]
[1732676839572,2.1416,233.57,233.5,2.1422]
[1732676840176,2.1417,233.56,233.5,2.1422]
[1732676840372,2.26,233.62,233.5,2.1422]
[1732676840577,9.98970238,233.61,233.5,2.1422]
[1732676841275,2.1417,233.56,233.5,2.1422]
[1732676841478,2.26,233.56,233.47,2.1123]
[1732676842077,9.99268234,233.55,233.47,2.1123]
[1732676842574,2.1422,233.51,233.47,2.1123]
[1732676843672,2.26,233.56,233.47,2.1123]
[1732676844271,2.1421,233.53,233.47,4.2548]
[1732676845072,2.1421,233.52,233.47,4.2548]
[1732676845773,2.1425,233.47,233.41,2.143]
[1732676845980,2.1425,233.47,233.35,2.0676]
[1732676846280,2.143,233.42,233.35,4.2112]
[1732676846474,16.9155124,233.47,233.3,2.26]
[1732676846475,2.26,233.41,233.3,2.26]
[1732676846670,2.26,233.41,233.29,1.6839]
[1732676847277,2.26,233.41,233.3,2.144]
[1732676847476,2.26,233.41,233.29,1.6839]
[1732676848474,16.9155124,233.47,233.3,2.26]
[1732676848674,2.26,233.46,233.31,16.9155124]
[1732676848879,2.1428,233.44,233.31,16.9155124]
[1732676849178,2.26,233.46,233.31,16.9155124]
[1732676849378,2.1431,233.42,233.33,2.1438]
[1732676849579,2.26,233.46,233.33,2.1438]
[1732676849777,2.26,233.46,233.3,2.26]
[1732676849975,2.143,233.42,233.34,2.1437]
[1732676850178,2.26,233.46,233.3,2.26]
[1732676850374,2.143,233.42,233.3,2.26]
[1732676850681,2.26,233.46,233.3,2.26]
[1732676851682,2.26,233.46,233.35,2.1436]
[1732676851683,2.143,233.42,233.35,2.1436]
[1732676851877,2.143,233.42,233.3,2.26]
[1732676852077,2.26,233.46,233.3,2.26]
[1732676853092,2.1429,233.43,233.35,2.1436]
[1732676853383,2.26,233.42,233.3,2.26]
[1732676853588,2.26,233.43,233.3,2.26]
[1732676853989,2.26,233.43,233.32,16.9155124]
[1732676854190,2.26,233.48,233.32,16.9155124]
[1732676854397,4.4025,233.48,233.4,2.1431]
[1732676854586,2.26,233.48,233.37,10.57990627]
[1732676855088,2.26,233.48,233.41,2.1431]
[1732676855285,2.26,233.48,233.37,10.57990627]
[1732676855489,2.26,233.48,233.38,4.0755]
[1732676856091,2.1425,233.47,233.39,2.1432]
[1732676856292,2.26,233.48,233.38,4.0755]
[1732676856490,2.26,233.48,233.36,2.26]
[1732676857294,2.1427,233.45,233.39,2.1432]
[1732676857697,2.26,233.48,233.36,2.26]
[1732676857892,2.26,233.48,233.36,19.188157]
[1732676858696,4.4025,233.48,233.41,2.1431]
[1732676858998,2.26,233.48,233.36,19.188157]
[1732676859197,2.26,233.48,233.36,2.26]
[1732676859393,2.1426,233.46,233.4,2.1431]
[1732676859694,2.26,233.48,233.36,2.26]
[1732676860201,4.4025,233.48,233.36,2.26]
[1732676860704,4.4025,233.48,233.42,2.143]
[1732676860899,2.26,233.48,233.36,19.188157]
[1732676862299,2.1425,233.47,233.39,2.1432]
[1732676862499,2.1425,233.47,233.36,19.188157]
[1732676862900,2.1426,233.46,233.4,2.1431]
[1732676863100,2.26,233.48,233.36,19.188157]
[1732676863302,50.348157,233.54,233.36,19.188157]
[1732676863501,2.24,233.53,233.36,19.188157]
[1732676863893,2.1422,233.5,233.36,19.188157]
[1732676864202,2.1422,233.5,233.43,2.1428]
[1732676864392,2.1422,233.5,233.36,19.188157]
[1732676865905,2.1422,233.5,233.4,2.1431]
[1732676866102,2.1422,233.5,233.36,19.188157]
[1732676866404,2.24,233.53,233.36,19.188157]
[1732676866804,2.1424,233.49,233.36,19.188157]
[1732676867402,2.1424,233.48,233.42,2.143]
[1732676867603,2.1424,233.48,233.36,19.188157]
[1732676867999,2.1423,233.49,233.41,2.1431]
[1732676868203,2.24,233.53,233.36,2.26]
[1732676869208,2.1425,233.48,233.43,2.1429]
[1732676869606,2.24,233.53,233.43,2.1429]
[1732676870511,2.1422,233.51,233.41,2.1431]
[1732676870714,2.24,233.53,233.36,2.26]
[1732676871911,2.1423,233.5,233.44,2.1427]
[1732676872108,2.24,233.53,233.36,2.26]
[1732676872311,2.1223,233.49,233.36,2.26]
[1732676873107,2.1223,233.49,233.3,4.0755]
[1732676873108,2.2237,233.48,233.33,2.24]
[1732676873312,2.24,233.47,233.33,2.24]
[1732676873513,2.1427,233.45,233.39,2.1432]
[1732676875315,2.1426,233.46,233.4,2.1431]
[1732676875517,2.24,233.47,233.4,2.1431]
[1732676876216,2.1426,233.46,233.4,2.1431]
[1732676876918,2.1429,233.43,233.37,2.1434]
[1732676879618,12.82443717,233.47,233.37,2.1434]
[1732676879813,2.143,233.42,233.36,2.1435]
[1732676880821,2.143,233.42,233.37,2.1434]
[1732676881023,2.24,233.47,233.35,10.58443717]
[1732676881323,2.24,233.47,233.42,2.143]
[1732676881518,2.24,233.47,233.35,10.58443717]
[1732676881718,2.24,233.47,233.38,10.58443717]
[1732676881916,2.2237,233.48,233.38,10.58443717]
[1732676882115,2.1701,233.55,233.41,10.58443717]
[1732676882316,12.22459228,233.54,233.41,10.58443717]
[1732676882616,2.24,233.54,233.41,10.58443717]
[1732676882820,10.58443717,233.57,233.44,10.58443717]
[1732676883022,2.24,233.55,233.44,10.58443717]
[1732676883317,4.3818,233.55,233.49,2.1423]
[1732676883512,12.75453717,233.6,233.44,12.82443717]
[1732676883715,2.24,233.57,233.44,12.82443717]
[1732676884116,2.24,233.57,233.47,10.58443717]
[1732676884918,2.1415,233.58,233.47,10.58443717]
[1732676885118,4.3815,233.58,233.47,10.58443717]
[1732676885522,4.3815,233.58,233.51,2.1421]
[1732676885823,4.3815,233.58,233.47,10.58443717]
[1732676885824,2.24,233.58,233.47,10.58443717]
[1732676886421,4.4101,233.6,233.47,10.58443717]
[1732676886622,9.99024624,233.59,233.47,10.58443717]
[1732676887727,2.1417,233.57,233.44,12.82443717]
[1732676887931,12.82443717,233.6,233.49,2.1423]
[1732676888126,10.58443717,233.57,233.44,12.82443717]
[1732676888326,2.1419,233.54,233.47,2.1424]
[1732676888932,2.1419,233.54,233.48,2.1424]
[1732676889131,2.1418,233.56,233.44,12.82443717]
[1732676889525,2.1418,233.56,233.48,2.1423]
[1732676890423,2.1418,233.56,233.49,2.1423]
[1732676891229,12.82443717,233.6,233.44,12.82443717]
[1732676891428,12.12367233,233.59,233.52,2.1421]
[1732676891629,2.1415,233.59,233.52,2.1421]
[1732676891832,2.1415,233.59,233.47,10.58443717]
[1732676891833,12.82443717,233.6,233.47,10.58443717]
[1732676892025,2.1416,233.57,233.5,2.1422]
[1732676892229,2.1416,233.57,233.44,12.82443717]
[1732676893531,10.58443717,233.57,233.48,2.1423]
[1732676893932,10.58443717,233.57,233.44,12.82443717]
[1732676894133,2.1418,233.56,233.5,2.1422]
[1732676894333,2.22,233.58,233.44,12.82443717]
[1732676895527,2.1417,233.57,233.48,2.1424]
[1732676895728,10.58443717,233.57,233.44,2.24]
[1732676896136,2.1421,233.52,233.45,2.1426]
[1732676896431,2.22,233.52,233.4,17.02103717]
[1732676897831,12.61783717,233.57,233.4,17.02103717]
[1732676898035,2.22,233.56,233.45,10.58443717]
[1732676898444,2.1418,233.55,233.48,2.1424]
[1732676898638,2.1418,233.55,233.42,10.58443717]
[1732676900234,2.22,233.56,233.42,10.58443717]
[1732676900741,10.58443717,233.54,233.4,6.4366]
[1732676901143,2.1421,233.52,233.4,6.4366]
[1732676902044,2.142,233.53,233.46,2.1426]
[1732676902441,2.22,233.56,233.42,10.58443717]
[1732676902639,9.98734036,233.55,233.42,10.58443717]
[1732676903053,14.83783717,233.57,233.42,10.58443717]
[1732676903240,14.83783717,233.57,233.5,2.1422]
[1732676903241,16.97943717,233.57,233.5,2.1422]
[1732676903441,6.395,233.57,233.45,10.58443717]
[1732676903834,6.395,233.57,233.5,2.1422]
[1732676904941,2.1417,233.56,233.5,2.1422]
[1732676905138,14.83783717,233.57,233.47,2.1424]
[1732676905340,9.98583593,233.56,233.47,2.1424]
[1732676905534,10.58443717,233.54,233.39,10.58443717]
[1732676905735,10.58443717,233.51,233.36,10.58443717]
[1732676905938,2.22,233.5,233.36,12.80443717]
[1732676906139,16.39674077,233.5,233.36,12.80443717]
[1732676906335,2.1425,233.47,233.36,12.80443717]
[1732676906739,10.58443717,233.48,233.36,12.80443717]
[1732676906948,10.58443717,233.48,233.36,2.22]
[1732676907344,9.98891889,233.47,233.36,2.22]
[1732676907938,2.1427,233.45,233.38,2.1433]
[1732676908144,10.58443717,233.48,233.38,2.1433]
[1732676908341,9.98869534,233.47,233.33,10.58443717]
[1732676909043,10.58443717,233.45,233.33,10.58443717]
[1732676909347,2.22,233.44,233.3,6.4821]
[1732676910246,2.1431,233.41,233.35,2.1436]
[1732676912749,10.58443717,233.42,233.26,10.58443717]
[1732676913143,10.58443717,233.39,233.23,10.58443717]
[1732676913354,2.1435,233.37,233.31,2.144]
[1732676913544,4.2651,233.38,233.29,10.58443717]
[1732676913750,4.2651,233.38,233.29,12.80443717]
[1732676914252,4.2651,233.38,233.34,2.30176]
[1732676915350,4.2651,233.38,233.34,2.1437]
[1732676919357,4.2651,233.38,233.32,2.1438]
[1732676920152,2.1435,233.37,233.26,10.58443717]
[1732676920350,4.2651,233.38,233.3,2.144]
[1732676920556,4.2651,233.38,233.26,10.58443717]
[1732676921353,4.2651,233.38,233.33,2.1438]
[1732676921554,4.2651,233.38,233.26,10.58443717]
[1732676921858,4.2651,233.38,233.27,10.58443717]
[1732676922663,4.2651,233.38,233.31,2.1439]
[1732676923362,4.2651,233.38,233.32,2.1439]
[1732676925858,6.4085,233.38,233.32,2.1439]
[1732676926260,6.77704653,233.37,233.3,6.77704653]
[1732676926460,8.92054653,233.37,233.3,8.92114653]
[1732676926657,6.77704653,233.37,233.3,2.1441]
[1732676927062,6.77704653,233.37,233.31,2.144]
[1732676927459,8.92044653,233.37,233.29,6.77704653]
[1732676928463,6.77704653,233.37,233.24,0.30996]
[1732676928662,6.77704653,233.37,233.28,6.77704653]
[1732676929271,6.77704653,233.3,233.24,0.30996]
[1732676929474,8.99704653,233.3,233.24,0.30996]
[1732676929772,6.77704653,233.28,233.24,0.30996]
[1732676931968,6.77704653,233.26,233.24,0.30996]
[1732676932371,2.1443,233.28,233.24,0.30996]
[1732676932867,12.81902919,233.3,233.24,0.30996]
[1732676933063,10.59902919,233.33,233.24,0.30996]
[1732676933264,2.22,233.32,233.24,0.30996]
[1732676933475,2.22,233.32,233.28,2.1443]
[1732676933968,2.22,233.32,233.24,0.30996]
[1732676933969,12.77262919,233.36,233.24,0.30996]
[1732676934271,2.22,233.35,233.25,10.59902919]
[1732676935172,2.22,233.35,233.24,0.30996]
[1732676936171,2.22,233.35,233.27,2.1443]
[1732676936366,2.22,233.35,233.24,0.30996]
[1732676936367,4.3636,233.35,233.24,0.30996]
[1732676937367,4.3636,233.35,233.28,2.1442]
[1732676937675,2.22,233.35,233.28,2.1442]
[1732676937875,2.1437,233.34,233.28,2.1442]
[1732676940273,2.22,233.35,233.28,2.1442]
[1732676940473,2.22,233.35,233.29,2.1441]
[1732676941578,4.3636,233.35,233.29,2.1441]
[1732676942372,4.3636,233.35,233.28,2.1443]
[1732676942675,12.81902919,233.35,233.2,2.22]
[1732676943370,2.1439,233.32,233.25,2.1445]
[1732676943572,10.59902919,233.32,233.19,2.22]
[1732676943876,12.81902919,233.35,233.19,2.22]
[1732676944072,2.1439,233.33,233.26,2.1444]
[1732676945276,2.1441,233.3,233.18,10.59902919]
[1732676945577,2.1441,233.3,233.14,23.61657833]
[1732676945578,2.22,233.3,233.17,3.9078]
[1732676945977,4.3641,233.3,233.23,2.1447]
[1732676946176,2.22,233.3,233.23,2.1447]
[1732676946580,4.3641,233.3,233.23,2.1447]
[1732676946781,4.3641,233.3,233.24,2.1446]
[1732676946982,2.1439,233.33,233.18,10.59902919]
[1732676947181,2.22,233.32,233.18,10.59902919]
[1732676947378,2.22,233.32,233.22,2.1448]
[1732676947583,2.22,233.32,233.18,10.59902919]
[1732676947882,2.22,233.32,233.19,2.34046466]
[1732676948078,2.22,233.32,233.18,10.59902919]
[1732676948276,2.22,233.32,233.19,2.34069464]
[1732676948578,2.1441,233.3,233.18,10.59902919]
[1732676949683,2.1441,233.3,233.23,2.1446]
[1732676950573,2.1442,233.29,233.23,2.1446]
[1732676951082,12.81902919,233.32,233.23,2.1446]
[1732676951382,2.1442,233.3,233.23,2.1446]
[1732676951880,12.81902919,233.32,233.23,2.1446]
[1732676953381,2.1442,233.29,233.23,2.1446]
[1732676953879,2.1442,233.29,233.15,10.59902919]
[1732676953880,2.1444,233.27,233.21,2.1449]
[1732676954089,4.3644,233.27,233.21,2.1449]
[1732676954283,6.78421205,233.25,233.21,2.1449]
[1732676955786,6.78421205,233.25,233.17,6.78421205]
[1732676955787,6.78421205,233.25,233.19,2.145]
[1732676955988,6.78421205,233.23,233.19,2.145]
[1732676956281,6.78421205,233.23,233.14,0.41338]
[1732676956484,6.78421205,233.21,233.15,2.1454]
[1732676956787,6.78421205,233.21,233.14,0.41338]
[1732676957182,6.78421205,233.21,233.15,2.1454]
[1732676957376,6.78421205,233.19,233.15,2.1454]
[1732676958578,6.78421205,233.17,233.14,0.41338]
[1732676958783,6.78421205,233.15,233.14,0.41338]
[1732676958988,9.00421205,233.15,233.14,0.41338]
[1732676959492,6.78421205,233.15,233.14,0.41338]
[1732676959689,2.22,233.17,233.14,0.41338]
[1732676959985,9.00421205,233.17,233.14,0.41338]
[1732676961279,6.78421205,233.15,233.14,0.41338]
[1732676965691,6.2696,233.26,233.14,0.41338]
[1732676965988,6.78421205,233.18,233.14,0.41338]
[1732676966189,9.00421205,233.18,233.14,0.41338]
[1732676966789,6.78421205,233.16,233.14,0.41338]
[1732676967391,12.86,233.59,233.15,6.78421205]
[1732676967688,6.78421205,233.39,233.16,4.56054888]
[1732676967887,6.78421205,233.37,233.28,6.78421205]
[1732676968092,6.78421205,233.35,233.31,2.1439]
[1732676968396,2.22,233.39,233.19,2.34054888]
[1732676968397,6.78421205,233.33,233.19,2.34054888]
[1732676968587,6.78421205,233.31,233.21,6.78421205]
[1732676968781,2.22,233.3,233.21,6.78421205]
[1732676968988,2.22,233.3,233.24,2.1446]
[1732676969286,190.0,234.12,233.29,6.78421205]
[1732676969484,6.78421205,233.73,233.62,6.78421205]
[1732676969688,22.23601062,233.72,233.65,6.78421205]
[1732676969888,4.3995,233.8,233.58,2.48]
[1732676969889,6.78421205,233.76,233.58,2.48]
[1732676970090,2.48,233.77,233.64,6.78421205]
[1732676970289,6.78421205,233.73,233.58,2.48]
[1732676970486,6.78421205,233.7,233.59,4.92657628]
[1732676970788,2.48,233.69,233.61,0.0208802]
[1732676970994,2.48,233.69,233.62,4.92657628]
[1732676971188,2.48,233.69,233.63,2.78458659]
[1732676971390,2.48,233.68,233.64,2.78458659]
[1732676971586,2.48,233.68,233.65,1.07099484]